bitfinex-derivatives/quotes_SOLF0:USTF0_20250106
["timestamp","ask_amount","ask_price","bid_price","bid_amount"]
[1736178947965,2.2586,221.36,221.32,2.259]
[1736178948168,2.2586,221.36,221.32,5.319]
[1736178949071,3.0828,221.48,221.32,3.06]
[1736178949267,0.71597106,221.47,221.33,4.4912]
[1736178949476,0.71597106,221.46,221.33,4.4912]
[1736178949765,3.65854732,221.49,221.36,2.2585]
[1736178949970,0.71582496,221.48,221.36,2.2585]
[1736178950171,2.2581,221.41,221.36,2.2585]
[1736178950374,3.65854732,221.49,221.36,2.2585]
[1736178950570,0.71575855,221.48,221.37,2.2584]
[1736178950771,2.2579,221.43,221.37,2.2584]
[1736178951363,3.65854732,221.49,221.38,3.06]
[1736178951874,2.2577,221.45,221.38,3.06]
[1736178952265,3.06,221.54,221.39,17.25492247]
[1736178952466,2.2576,221.47,221.41,2.258]
[1736178953275,17.25492247,221.59,221.42,2.2579]
[1736178953464,3.77562466,221.58,221.42,2.2579]
[1736178953669,0.71562466,221.57,221.43,1.4345]
[1736178953971,0.71562466,221.56,221.44,3.06]
[1736178954166,4.5806,221.62,221.44,4.6435]
[1736178954372,2.2565,221.57,221.47,17.25492247]
[1736178954569,3.06,221.65,221.53,2.2568]
[1736178954878,3.06,221.65,221.53,3.06]
[1736178954879,2.2562,221.6,221.53,3.06]
[1736178955073,3.06,221.65,221.53,3.06]
[1736178955277,17.25492247,221.61,221.48,3.06]
[1736178955471,2.257,221.52,221.48,3.06]
[1736178955673,17.25492247,221.61,221.48,3.06]
[1736178955874,3.77118353,221.6,221.48,3.06]
[1736178956076,2.257,221.52,221.48,3.06]
[1736178957278,2.2575,221.47,221.44,1.5835]
[1736178959468,2.2573,221.49,221.44,1.5835]
[1736178959978,3.06,221.56,221.44,1.5835]
[1736178960172,2.2569,221.53,221.44,1.5835]
[1736178960378,3.06,221.56,221.45,2.2576]
[1736178961671,3.06,221.56,221.44,1.5835]
[1736178962575,1.5439,221.58,221.44,1.5835]
[1736178962781,2.257,221.53,221.46,2.2576]
[1736178963177,2.257,221.53,221.46,13.0225704]
[1736178963378,2.257,221.52,221.46,13.0225704]
[1736178963579,10.7649704,221.59,221.47,2.2574]
[1736178963780,10.7649704,221.59,221.49,10.7649704]
[1736178964084,10.7649704,221.62,221.49,13.8249704]
[1736178964381,4.5582,221.64,221.52,10.7649704]
[1736178965579,2.2566,221.57,221.52,10.7649704]
[1736178966881,10.7649704,221.62,221.49,13.8249704]
[1736178967278,1.4891,221.63,221.52,10.7649704]
[1736178967578,10.7649704,221.65,221.52,10.7649704]
[1736178968080,3.06,221.67,221.52,10.7649704]
[1736178968283,2.256,221.62,221.55,10.7649704]
[1736178968478,4.3849,221.72,221.56,3.06]
[1736178968677,11.4776469,221.71,221.58,10.7649704]
[1736178968875,0.7126765,221.7,221.58,10.7649704]
[1736178969272,2.2555,221.67,221.59,8.21]
[1736178969478,10.7649704,221.71,221.59,8.21]
[1736178969880,2.2556,221.66,221.59,10.4662]
[1736178970279,10.7649704,221.68,221.59,8.21]
[1736178970483,10.7649704,221.65,221.59,8.21]
[1736178970682,10.7649704,221.6,221.45,3.06]
[1736178970880,10.7649704,221.57,221.46,1.5071]
[1736178971780,2.2568,221.54,221.46,1.5071]
[1736178972081,10.7649704,221.6,221.47,10.7649704]
[1736178972486,10.7649704,221.6,221.47,13.0224704]
[1736178973190,2.2569,221.54,221.47,13.0224704]
[1736178973488,10.7649704,221.57,221.45,1.4936]
[1736178973687,10.7649704,221.57,221.45,4.5536]
[1736178973688,2.2568,221.54,221.45,4.5536]
[1736178973891,10.7649704,221.57,221.45,4.5536]
[1736178974293,2.2573,221.49,221.45,4.5536]
[1736178975288,10.7649704,221.54,221.45,4.5536]
[1736178975488,10.7649704,221.54,221.42,3.06]
[1736178976290,10.7649704,221.54,221.42,13.8249704]
[1736178976689,2.2571,221.51,221.42,13.8249704]
[1736178976895,10.7649704,221.54,221.42,13.8249704]
[1736178977287,10.7649704,221.51,221.42,3.06]
[1736178977693,10.7649704,221.51,221.41,1.4691]
[1736178977890,10.7649704,221.48,221.36,13.8628704]
[1736178978291,10.7649704,221.48,221.37,3.06]
[1736178979298,2.2577,221.45,221.37,3.06]
[1736178979594,10.7649704,221.48,221.37,3.06]
[1736178980398,2.258,221.42,221.37,3.06]
[1736178980994,2.2579,221.44,221.37,3.06]
[1736178981596,2.2579,221.43,221.37,3.06]
[1736178981796,10.7649704,221.48,221.37,3.06]
[1736178982000,10.7649704,221.45,221.35,1.5361]
[1736178982295,2.2585,221.38,221.32,3.06]
[1736178982499,10.7649704,221.45,221.32,3.06]
[1736178982700,10.7649704,221.42,221.3,10.7649704]
[1736178983194,10.7649704,221.42,221.27,10.7649704]
[1736178983403,10.7649704,221.39,221.27,13.8249704]
[1736178983601,2.2591,221.32,221.27,3.06]
[1736178983899,10.7649704,221.39,221.27,3.06]
[1736178984102,2.2591,221.31,221.27,3.06]
[1736178984400,2.2591,221.31,221.25,3.06]
[1736178984700,13.8249704,221.39,221.26,10.7649704]
[1736178985299,13.8249704,221.39,221.27,2.2595]
[1736178985803,2.2587,221.35,221.26,12.2602704]
[1736178986003,2.2587,221.35,221.28,2.2594]
[1736178986203,3.06,221.39,221.29,10.7649704]
[1736178986398,10.7649704,221.42,221.3,2.2592]
[1736178987904,10.7649704,221.42,221.29,13.0241704]
[1736178988104,10.7649704,221.42,221.29,10.7649704]
[1736178988303,10.7649704,221.39,221.27,3.018]
[1736178988500,10.7649704,221.39,221.27,5.2775]
[1736178988701,10.7649704,221.42,221.29,10.7649704]
[1736178989506,2.2584,221.39,221.3,2.2592]
[1736178989703,10.7649704,221.42,221.3,2.2592]
[1736178990398,4.4703,221.46,221.33,10.7649704]
[1736178990602,10.7649704,221.48,221.36,10.7649704]
[1736178990603,13.8249704,221.48,221.36,10.7649704]
[1736178990805,10.7649704,221.48,221.36,10.7649704]
[1736178991301,2.2577,221.45,221.37,2.15]
[1736178991502,3.06,221.5,221.37,5.21]
[1736178991707,2.2581,221.42,221.37,5.21]
[1736178992205,3.06,221.5,221.37,5.21]
[1736178992206,2.2576,221.47,221.37,5.21]
[1736178992401,13.8249704,221.52,221.39,10.7649704]
[1736178992603,0.71158327,221.51,221.39,10.7649704]
[1736178992904,0.71158935,221.51,221.39,10.7649704]
[1736178993203,0.71158935,221.51,221.37,7.4685]
[1736178993408,13.8249704,221.52,221.37,7.4685]
[1736178993709,0.71161537,221.51,221.37,7.4685]
[1736178994307,10.7649704,221.46,221.37,5.21]
[1736178994513,10.7649704,221.4,221.37,2.15]
[1736178995104,2.2584,221.38,221.37,2.15]
[1736178996710,3.06,221.44,221.37,2.15]
[1736178997007,20.30909143,221.44,221.37,2.15]
[1736178998411,2.2584,221.38,221.37,2.15]
[1736179002316,2.2594,221.28,221.23,1.4953]
[1736179002620,2.2594,221.28,221.23,4.5553]
[1736179002812,17.24909143,221.36,221.23,1.4953]
[1736179003017,2.2598,221.24,221.23,1.4953]
[1736179003610,3.06,221.33,221.17,20.30909143]
[1736179003813,2.2601,221.22,221.17,20.23649143]
[1736179004013,3.06,221.33,221.17,20.23649143]
[1736179004219,2.2594,221.29,221.17,20.23649143]
[1736179004420,3.06,221.33,221.17,20.23649143]
[1736179005321,2.2602,221.21,221.17,20.23649143]
[1736179005616,17.24909143,221.32,221.17,20.23649143]
[1736179006121,20.39119143,221.32,221.17,20.23649143]
[1736179006510,2.2599,221.24,221.17,20.23649143]
[1736179006919,20.39119143,221.32,221.17,20.23649143]
[1736179007820,2.26,221.23,221.17,20.23649143]
[1736179008319,3.06,221.31,221.17,17.24909143]
[1736179008520,3.06,221.31,221.14,17.24909143]
[1736179009314,2.2596,221.26,221.14,17.24909143]
[1736179009522,3.06,221.31,221.14,17.24909143]
[1736179009719,17.24909143,221.28,221.13,1.5469]
[1736179010622,2.2605,221.18,221.13,1.5469]
[1736179011220,3.06,221.24,221.13,1.5469]
[1736179011824,20.30909143,221.24,221.11,1.5149]
[1736179012023,20.30909143,221.24,221.08,1.5469]
[1736179012421,17.24909143,221.2,221.08,1.5469]
[1736179012822,20.30909143,221.24,221.08,1.5469]
[1736179013824,2.2608,221.15,221.08,1.5469]
[1736179014030,20.30909143,221.24,221.08,1.5469]
[1736179014230,3.06,221.23,221.08,1.5469]
[1736179014528,18.76949143,221.28,221.1,17.24909143]
[1736179014829,3.06,221.27,221.1,17.24909143]
[1736179015028,3.06,221.26,221.1,17.24909143]
[1736179015231,2.26,221.22,221.15,2.2607]
[1736179015433,3.06,221.29,221.14,20.30909143]
[1736179015731,3.06,221.31,221.18,17.24909143]
[1736179015931,2.2598,221.24,221.18,17.24909143]
[1736179017226,2.2599,221.23,221.18,17.24909143]
[1736179018225,2.2599,221.23,221.18,18.76259143]
[1736179018632,2.2601,221.22,221.18,18.76259143]
[1736179019335,3.06,221.31,221.18,18.76259143]
[1736179019536,17.24909143,221.28,221.15,2.9479]
[1736179020036,2.2598,221.25,221.15,2.9479]
[1736179020234,17.24909143,221.28,221.15,2.9479]
[1736179021036,17.24909143,221.24,221.11,1.5655]
[1736179021234,3.06,221.23,221.11,1.5655]
[1736179021433,17.24909143,221.2,221.11,1.5655]
[1736179021636,2.2608,221.15,221.11,1.5655]
[1736179022038,17.24909143,221.2,221.07,1.4626]
[1736179022739,3.06,221.23,221.1,17.24909143]
[1736179023436,2.2604,221.19,221.1,17.24909143]
[1736179023630,17.24909143,221.28,221.1,17.24909143]
[1736179023832,3.06,221.27,221.14,17.24909143]
[1736179024131,3.06,221.27,221.15,6.7766]
[1736179024333,3.06,221.27,221.15,8.3521]
[1736179024634,2.2601,221.21,221.15,8.3521]
[1736179025036,3.06,221.27,221.15,8.3521]
[1736179025232,2.2603,221.2,221.15,8.3521]
[1736179025727,2.2601,221.22,221.15,6.0915]
[1736179025925,2.2601,221.22,221.16,1.4687]
[1736179026334,2.2601,221.22,221.18,2.2604]
[1736179026635,17.24909143,221.32,221.16,1.4687]
[1736179026836,3.06,221.31,221.16,1.4687]
[1736179027036,2.2601,221.22,221.16,1.4687]
[1736179027232,3.06,221.31,221.16,1.4687]
[1736179027635,2.2599,221.23,221.16,1.4687]
[1736179028133,3.06,221.31,221.16,1.4687]
[1736179029237,2.2596,221.27,221.2,2.2602]
[1736179029539,3.06,221.31,221.2,2.2602]
[1736179029746,2.2597,221.26,221.2,2.2602]
[1736179029938,20.30909143,221.32,221.2,2.2602]
[1736179030436,2.2594,221.29,221.2,2.2602]
[1736179030636,20.30909143,221.32,221.2,2.2602]
[1736179032042,20.30909143,221.32,221.16,1.4687]
[1736179032238,3.06,221.33,221.18,17.24909143]
[1736179032435,3.06,221.34,221.18,17.24909143]
[1736179032849,2.2592,221.31,221.24,2.2597]
[1736179033038,13.84806122,221.34,221.24,2.2597]
[1736179033443,2.2591,221.31,221.24,2.2597]
[1736179033642,2.2591,221.31,221.25,2.2597]
[1736179034049,2.2593,221.3,221.22,3.06]
[1736179034244,10.78806122,221.34,221.23,2.2599]
[1736179034844,2.2593,221.3,221.23,2.2599]
[1736179035543,2.2593,221.3,221.24,2.2598]
[1736179035938,10.78806122,221.34,221.23,10.78806122]
[1736179036143,10.78806122,221.37,221.23,10.78806122]
[1736179036440,10.78806122,221.37,221.24,3.0132]
[1736179036643,2.259,221.33,221.24,3.0132]
[1736179036948,10.78806122,221.37,221.27,2.2595]
[1736179037336,2.2589,221.33,221.27,2.2595]
[1736179037747,10.78806122,221.37,221.24,3.0132]
[1736179038746,10.78806122,221.37,221.25,2.2597]
[1736179040453,2.2591,221.31,221.25,2.2597]
[1736179041047,2.259,221.32,221.26,2.2596]
[1736179041250,2.259,221.32,221.24,3.0132]
[1736179041455,10.78806122,221.37,221.24,3.0132]
[1736179042452,2.2591,221.31,221.25,2.2597]
[1736179042954,2.2592,221.3,221.25,2.2597]
[1736179044154,2.2588,221.34,221.26,10.78806122]
[1736179044555,10.78806122,221.39,221.26,10.78806122]
[1736179044859,2.2589,221.34,221.3,2.2592]
[1736179045064,10.78806122,221.39,221.28,3.06]
[1736179045266,2.2586,221.36,221.29,2.2593]
[1736179045469,10.78806122,221.39,221.28,3.06]
[1736179045759,2.2587,221.35,221.31,2.2591]
[1736179045963,10.78806122,221.36,221.25,1.5574]
[1736179046264,10.78806122,221.33,221.25,1.5574]
[1736179048059,2.2595,221.28,221.24,3.0132]
[1736179048266,10.78806122,221.33,221.24,3.0132]
[1736179049470,2.2596,221.26,221.21,2.2601]
[1736179049667,2.2596,221.26,221.21,5.3201]
[1736179050467,10.78806122,221.3,221.21,5.3201]
[1736179050770,10.78806122,221.3,221.21,3.06]
[1736179051471,2.2597,221.26,221.22,2.26]
[1736179051670,2.2597,221.26,221.21,3.06]
[1736179051969,10.78806122,221.33,221.21,3.06]
[1736179052469,2.2595,221.27,221.23,2.2599]
[1736179052770,10.78806122,221.33,221.21,3.06]
[1736179053169,2.2594,221.29,221.21,3.06]
[1736179053871,10.78806122,221.29,221.15,1.4981]
[1736179054164,10.78806122,221.26,221.15,4.5581]
[1736179055373,10.78806122,221.26,221.15,15.34616122]
[1736179055769,10.78806122,221.26,221.16,3.06]
[1736179056368,2.2601,221.22,221.18,2.2604]
[1736179056567,10.78806122,221.26,221.18,2.2604]
[1736179056967,2.2601,221.22,221.18,2.2604]
[1736179057170,2.2601,221.22,221.16,3.06]
[1736179057463,2.2599,221.24,221.16,3.06]
[1736179057973,2.2599,221.24,221.2,2.2602]
[1736179058773,10.78806122,221.3,221.2,2.2602]
[1736179058978,2.26,221.23,221.2,2.2602]
[1736179059870,2.26,221.23,221.16,3.06]
[1736179060072,2.26,221.23,221.19,2.2603]
[1736179060673,2.26,221.22,221.19,2.2603]
[1736179061976,2.26,221.23,221.19,2.2603]
[1736179062669,2.26,221.23,221.2,2.2602]
[1736179064478,10.78806122,221.3,221.2,2.2602]
[1736179065276,2.2598,221.25,221.21,2.2601]
[1736179067673,2.2596,221.27,221.18,10.78806122]
[1736179067876,13.84806122,221.37,221.24,10.78806122]
[1736179068079,0.71248901,221.36,221.24,10.78806122]
[1736179068279,2.259,221.33,221.26,2.2596]
[1736179068479,13.84806122,221.37,221.26,2.2596]
[1736179068881,2.2592,221.31,221.26,2.2596]
[1736179069383,10.78806122,221.34,221.23,3.06]
[1736179069583,2.2593,221.3,221.25,2.2597]
[1736179070478,2.2593,221.29,221.25,2.2597]
[1736179070680,10.78806122,221.34,221.23,3.06]
[1736179070887,10.78806122,221.31,221.23,3.06]
[1736179071088,2.2597,221.26,221.23,3.06]
[1736179075387,10.78806122,221.31,221.23,3.06]
[1736179075577,2.2596,221.26,221.23,3.06]
[1736179077779,10.78806122,221.31,221.23,3.06]
[1736179077982,2.2598,221.24,221.18,3.06]
[1736179078484,2.26,221.23,221.19,2.2603]
[1736179078686,10.78806122,221.28,221.18,3.06]
[1736179080391,10.78806122,221.28,221.17,2.2605]
[1736179080889,10.78806122,221.28,221.13,93.10674637]
[1736179080890,10.78806122,221.25,221.15,2.2607]
[1736179081096,3.0807,221.3,221.16,10.78806122]
[1736179081295,2.2597,221.25,221.19,10.78806122]
[1736179081591,2.2597,221.25,221.19,13.04836122]
[1736179082196,2.2595,221.27,221.19,10.78806122]
[1736179082387,13.84806122,221.32,221.19,10.78806122]
[1736179082592,13.84806122,221.32,221.2,3.06]
[1736179082796,2.2593,221.29,221.23,2.2598]
[1736179082991,13.84806122,221.32,221.2,3.06]
[1736179083293,13.84806122,221.32,221.23,2.2599]
[1736179083494,2.2594,221.29,221.23,2.2599]
[1736179083694,2.2594,221.29,221.2,13.84806122]
[1736179083894,2.2591,221.32,221.23,10.78806122]
[1736179084096,10.78806122,221.35,221.23,10.78806122]
[1736179084691,2.2591,221.31,221.26,2.2596]
[1736179085290,2.2592,221.3,221.24,2.2597]
[1736179085693,10.78806122,221.35,221.23,10.78806122]
[1736179086397,0.1361,221.38,221.26,10.78806122]
[1736179086398,10.78806122,221.38,221.26,10.78806122]
[1736179086594,10.78806122,221.38,221.26,13.84806122]
[1736179086798,2.2588,221.34,221.28,2.2594]
[1736179086998,10.78806122,221.41,221.29,10.78806122]
[1736179087587,80.91731602,221.42,221.29,10.78806122]
[1736179087792,6.0736,221.42,221.29,10.78806122]
[1736179088097,2.2584,221.38,221.32,2.2589]
[1736179088298,2.2584,221.38,221.32,5.3189]
[1736179088997,2.2584,221.38,221.32,16.10696122]
[1736179089199,2.2584,221.38,221.32,13.84806122]
[1736179089400,2.2584,221.38,221.33,2.2589]
[1736179089694,6.7726,221.47,221.32,13.84806122]
[1736179089699,10.78806122,221.47,221.32,13.84806122]
[1736179089896,0.71412357,221.46,221.32,13.84806122]
[1736179090200,0.71412357,221.46,221.35,10.78806122]
[1736179090394,10.78806122,221.5,221.35,10.78806122]
[1736179090597,2.2579,221.44,221.37,2.2585]
[1736179090797,10.78806122,221.5,221.35,10.78806122]
[1736179090998,10.78806122,221.47,221.35,10.78806122]
[1736179091404,10.78806122,221.47,221.32,13.84806122]
[1736179091703,10.78806122,221.44,221.32,13.84806122]
[1736179091898,2.2582,221.41,221.33,2.2588]
[1736179092200,2.2582,221.41,221.32,13.84806122]
[1736179092402,2.2582,221.41,221.35,2.2587]
[1736179092598,2.2582,221.41,221.32,13.84806122]
[1736179092599,2.2579,221.43,221.32,13.84806122]
[1736179092802,10.78806122,221.47,221.35,10.78806122]
[1736179093103,10.78806122,221.5,221.39,2.2583]
[1736179093304,2.2577,221.45,221.39,2.2583]
[1736179093611,10.78806122,221.5,221.38,16.10636122]
[1736179093803,2.2577,221.45,221.38,13.84806122]
[1736179094895,2.2581,221.41,221.38,3.06]
[1736179095100,10.78806122,221.43,221.33,3.06]
[1736179095606,2.2585,221.38,221.33,3.06]
[1736179096503,2.2585,221.38,221.33,5.3189]
[1736179096903,10.78806122,221.43,221.33,5.3189]
[1736179097099,2.2585,221.37,221.33,5.3189]
[1736179097303,10.78806122,221.43,221.33,3.06]
[1736179097501,2.2588,221.34,221.33,3.06]
[1736179098910,2.2593,221.3,221.25,2.2597]
[1736179099104,2.2593,221.3,221.24,3.06]
[1736179099310,10.78806122,221.37,221.24,3.06]
[1736179100012,2.2593,221.3,221.26,2.2596]
[1736179100610,10.78806122,221.37,221.25,5.3197]
[1736179100611,2.259,221.33,221.25,5.3197]
[1736179100806,10.78806122,221.37,221.25,3.06]
[1736179101511,10.78806122,221.37,221.26,2.2596]
[1736179101903,2.2591,221.32,221.27,2.2595]
[1736179102109,10.78806122,221.37,221.25,3.06]
[1736179102705,10.78806122,221.37,221.29,2.2593]
[1736179102706,2.2589,221.33,221.29,2.2593]
[1736179103007,10.78806122,221.37,221.29,2.2593]
[1736179103206,2.2587,221.36,221.3,2.2592]
[1736179103410,13.84806122,221.4,221.3,2.2592]
[1736179104412,2.2585,221.37,221.3,2.2592]
[1736179104607,10.78806122,221.44,221.31,3.06]
[1736179104811,0.71548276,221.43,221.31,3.06]
[1736179105008,2.2583,221.4,221.31,3.06]
[1736179105214,10.78806122,221.44,221.34,2.2587]
[1736179107515,2.2582,221.4,221.34,2.2587]
[1736179107711,10.78806122,221.44,221.34,2.2587]
[1736179108512,10.78806122,221.44,221.33,2.2589]
[1736179109508,10.78806122,221.44,221.31,7.5951]
[1736179109708,2.2578,221.44,221.39,2.2583]
[1736179109918,13.82806122,221.5,221.39,2.2583]
[1736179110116,0.71529286,221.48,221.39,10.78806122]
[1736179110315,0.71529286,221.47,221.43,2.2578]
[1736179110617,3.65794424,221.51,221.43,2.2578]
[1736179110818,0.71535439,221.5,221.43,2.2578]
[1736179111016,2.2574,221.48,221.39,10.78806122]
[1736179111218,3.65794424,221.51,221.41,2.258]
[1736179111511,0.71552143,221.5,221.41,2.258]
[1736179112014,2.2577,221.45,221.37,3.04]
[1736179112216,10.78806122,221.49,221.37,3.04]
[1736179112814,3.65794424,221.51,221.37,3.04]
[1736179113008,0.71549398,221.5,221.39,10.78806122]
[1736179113207,3.65794424,221.51,221.39,10.78806122]
[1736179113617,2.2574,221.48,221.43,2.2579]
[1736179114709,2.2574,221.48,221.42,2.258]
[1736179115017,2.2575,221.47,221.42,2.258]
[1736179117722,2.2576,221.46,221.42,2.258]
[1736179119223,10.78806122,221.54,221.4,4.516]
[1736179119523,2.2575,221.47,221.43,2.2579]
[1736179119730,2.2575,221.47,221.43,5.2979]
[1736179120022,10.78806122,221.54,221.43,3.04]
[1736179120325,0.71563131,221.53,221.43,3.04]
[1736179120626,2.2572,221.5,221.43,5.2978]
[1736179120822,10.78806122,221.54,221.43,3.04]
[1736179121018,0.71563177,221.53,221.43,3.04]
[1736179121428,2.2574,221.49,221.43,5.2979]
[1736179122933,3.65654059,221.6,221.48,10.78806122]
[1736179123132,0.71539823,221.59,221.49,3.04]
[1736179123327,10.78806122,221.62,221.51,10.78806122]
[1736179123630,0.71535192,221.6,221.51,10.78806122]
[1736179123837,157.95021826,221.64,221.51,10.78806122]
[1736179124134,3.0387,221.64,221.51,10.78806122]
[1736179124332,0.71528779,221.63,221.51,10.78806122]
[1736179124532,2.2563,221.59,221.54,2.2567]
[1736179125235,2.2563,221.59,221.51,10.78806122]
[1736179125436,2.2563,221.59,221.53,2.2569]
[1736179125629,3.0387,221.64,221.53,2.2569]
[1736179125834,2.2568,221.54,221.49,5.2972]
[1736179126136,10.78806122,221.59,221.49,3.04]
[1736179126437,2.2566,221.56,221.49,3.04]
[1736179126935,2.2567,221.55,221.5,2.2572]
[1736179127232,10.78806122,221.62,221.49,3.04]
[1736179127628,10.78806122,221.65,221.54,10.78806122]
[1736179128738,2.256,221.62,221.56,2.2565]
[1736179129037,2.256,221.62,221.55,3.04]
[1736179129541,2.256,221.62,221.57,2.2564]
[1736179129741,2.2561,221.61,221.55,3.04]
[1736179130136,10.78806122,221.68,221.55,3.04]
[1736179130331,10.78806122,221.68,221.57,2.2565]
[1736179130536,10.78806122,221.68,221.55,3.04]
[1736179130842,2.2559,221.63,221.58,2.2563]
[1736179131033,10.78806122,221.68,221.57,10.78806122]
[1736179132039,2.2555,221.67,221.6,2.2561]
[1736179132333,10.78806122,221.71,221.61,3.04]
[1736179132738,2.2555,221.67,221.61,5.2961]
[1736179133443,10.78806122,221.71,221.61,5.2961]
[1736179133643,2.2555,221.66,221.61,5.2961]
[1736179133838,10.78806122,221.71,221.61,3.04]
[1736179134143,2.2562,221.6,221.56,3.04]
[1736179134345,10.78806122,221.65,221.56,3.04]
[1736179134536,2.2564,221.58,221.51,10.78806122]
[1736179134741,10.78806122,221.65,221.52,3.04]
[1736179134938,10.78806122,221.62,221.52,3.04]
[1736179135142,2.2566,221.56,221.53,3.04]
[1736179135337,2.2566,221.56,221.52,3.04]
[1736179136246,10.78806122,221.65,221.52,3.04]
[1736179136447,10.78806122,221.65,221.52,5.2969]
[1736179136648,10.78806122,221.65,221.52,3.04]
[1736179137347,10.78806122,221.65,221.53,2.2568]
[1736179138139,10.78806122,221.62,221.52,3.04]
[1736179138547,10.78806122,221.62,221.48,10.78806122]
[1736179138745,3.04,221.64,221.49,3.04]
[1736179138946,11.50108224,221.63,221.49,3.04]
[1736179139147,10.78806122,221.63,221.5,2.2571]
[1736179139350,2.2565,221.58,221.51,10.78806122]
[1736179139548,10.78806122,221.63,221.51,10.78806122]
[1736179139948,2.2561,221.61,221.52,2.2569]
[1736179140255,10.78806122,221.67,221.54,10.78806122]
[1736179140551,2.2559,221.63,221.54,13.04486122]
[1736179140854,10.78806122,221.67,221.54,10.78806122]
[1736179141054,2.2564,221.58,221.54,10.78806122]
[1736179141657,10.78806122,221.67,221.54,10.78806122]
[1736179141658,2.2563,221.59,221.54,10.78806122]
[1736179142452,3.04,221.68,221.54,10.78806122]
[1736179142647,0.71248822,221.67,221.57,10.78806122]
[1736179142848,2.903,221.7,221.6,10.78806122]
[1736179143048,2.2557,221.65,221.6,10.78806122]
[1736179143557,2.903,221.7,221.6,10.78806122]
[1736179143945,2.903,221.7,221.58,2.2563]
[1736179144149,2.903,221.7,221.57,13.82806122]
[1736179144353,10.78806122,221.65,221.55,4.5234]
[1736179144552,10.78806122,221.62,221.51,3.04]
[1736179145156,3.04,221.67,221.51,13.82806122]
[1736179145350,10.78806122,221.64,221.51,13.82806122]
[1736179147257,2.2564,221.58,221.51,16.08506122]
[1736179148154,10.78806122,221.64,221.51,13.82806122]
[1736179148359,2.2562,221.6,221.54,2.2568]
[1736179149054,10.78806122,221.64,221.51,13.82806122]
[1736179149261,2.2563,221.59,221.52,2.2569]
[1736179149662,10.78806122,221.64,221.53,3.04]
[1736179150963,10.78806122,221.64,221.53,5.2969]
[1736179151153,10.78806122,221.64,221.53,3.04]
[1736179151658,2.2563,221.59,221.53,3.04]
[1736179152160,2.2563,221.59,221.53,5.2969]
[1736179152859,2.2565,221.57,221.53,3.04]
[1736179153250,10.78806122,221.6,221.44,1.5501]
[1736179153454,10.78806122,221.6,221.48,10.78806122]
[1736179153455,2.2567,221.55,221.48,10.78806122]
[1736179153655,10.78806122,221.6,221.48,10.78806122]
[1736179153961,2.2568,221.54,221.48,13.04536122]
[1736179155462,2.2569,221.53,221.48,13.04536122]
[1736179156161,2.2569,221.53,221.49,2.2572]
[1736179158065,10.78806122,221.6,221.48,3.04]
[1736179158262,2.2572,221.5,221.48,3.04]
[1736179158864,2.2572,221.5,221.46,2.2576]
[1736179159165,10.78806122,221.57,221.45,1.5714]
[1736179159461,10.78806122,221.57,221.45,4.6114]
[1736179159864,2.2575,221.47,221.44,1.5501]
[1736179160465,2.2571,221.51,221.47,2.2575]
[1736179161168,10.78806122,221.57,221.47,2.2575]
[1736179161759,2.2568,221.54,221.47,2.2575]
[1736179161963,13.82806122,221.6,221.48,2.2573]
[1736179162466,2.2568,221.54,221.47,2.2574]
[1736179162970,1.456,221.61,221.52,10.78806122]
[1736179163164,1.532,221.62,221.52,10.78806122]
[1736179163359,88.88689781,221.67,221.52,10.78806122]
[1736179163567,0.71281043,221.66,221.52,10.78806122]
[1736179163763,2.2564,221.59,221.53,2.2568]
[1736179164066,13.82806122,221.67,221.53,2.2568]
[1736179164261,0.71286793,221.66,221.53,2.2568]
[1736179165267,0.71286793,221.66,221.52,10.78806122]
[1736179165468,2.2564,221.58,221.52,10.78806122]
[1736179166462,2.2564,221.58,221.52,13.04506122]